bitfinex-derivatives/quotes_ETHF0:USTF0_20260123
["timestamp","ask_amount","ask_price","bid_price","bid_amount"]
[1769164616574,0.30668717,2929.3,2928.3,3.05027225]
[1769164616774,0.30668717,2929.2,2928.3,3.05027225]
[1769164617079,0.1804294,2929.5,2928.3,3.05027225]
[1769164617281,0.30671831,2929.4,2928.3,3.05027225]
[1769164617480,0.30671831,2929.3,2928.3,3.05027225]
[1769164617677,0.1804294,2929.5,2928.3,3.05027225]
[1769164618180,0.3067669,2929.4,2928.3,3.05027225]
[1769164618582,0.3067669,2929.4,2927.7,0.00359691]
[1769164618583,2.63312705,2930.0,2928.7,3.05027225]
[1769164619479,0.17086,2930.0,2928.7,3.05027225]
[1769164619884,0.1748338,2930.0,2928.7,3.05027225]
[1769164620276,0.0039738,2930.0,2929.0,3.96411597]
[1769164620483,0.0039738,2930.0,2929.1,3.05027225]
[1769164624184,0.92184316,2929.9,2929.1,3.05027225]
[1769164624484,0.0039738,2930.0,2929.1,3.05027225]
[1769164628182,0.0039738,2930.0,2928.7,2.69486139]
[1769164633896,2.66213532,2930.0,2928.7,2.69486139]
[1769164634096,1.09130664,2929.9,2928.6,0.00512707]
[1769164634296,0.17086,2929.9,2928.6,0.00512707]
[1769164635597,2.82902152,2929.9,2928.6,0.00512707]
[1769164636192,0.9207737,2929.8,2928.6,0.00512707]
[1769164636397,2.82902152,2929.9,2928.6,0.00512707]
[1769164636697,0.92085722,2929.8,2928.6,2.69998846]
[1769164636896,0.17086,2929.9,2928.6,2.69998846]
[1769164637090,0.92085688,2929.8,2928.6,2.69998846]
[1769164637299,0.17086,2929.9,2928.6,2.69998846]
[1769164637597,0.92102581,2929.8,2928.6,2.69998846]
[1769164637797,0.17086,2929.9,2928.6,2.69998846]
[1769164637994,1.22439599,2929.8,2928.6,2.69998846]
[1769164638194,0.17086,2929.9,2928.6,2.69998846]
[1769164638394,1.22457174,2929.8,2928.6,2.69998846]
[1769164638595,0.17086,2929.9,2928.6,2.69998846]
[1769164638797,1.22463916,2929.8,2928.6,2.69998846]
[1769164638997,0.17086,2929.9,2928.6,2.69998846]
[1769164639192,1.2246391,2929.8,2928.6,2.69998846]
[1769164639393,0.17086,2929.9,2928.6,2.69998846]
[1769164639593,1.22493926,2929.8,2928.6,2.69998846]
[1769164639795,0.17086,2929.9,2928.6,2.69998846]
[1769164639996,1.22493879,2929.8,2928.6,2.69998846]
[1769164640197,0.92162191,2929.7,2928.6,2.69998846]
[1769164640498,0.17086,2929.9,2928.6,3.61383218]
[1769164640695,0.0039738,2930.0,2928.7,2.69486139]
[1769164647600,0.17083,2930.5,2929.1,2.69486139]
[1769164647802,1.22669764,2930.4,2929.1,2.69486139]
[1769164648003,1.22669764,2930.3,2929.1,2.69486139]
[1769164648202,1.22669764,2930.2,2929.1,2.69486139]
[1769164648405,0.17083,2930.5,2929.1,2.69486139]
[1769164648604,1.22677935,2930.4,2929.1,2.69486139]
[1769164648805,0.17360638,2930.5,2929.1,2.69486139]
[1769164649111,1.22675545,2930.4,2929.1,2.69486139]
[1769164649313,0.17360638,2930.5,2929.1,2.69486139]
[1769164649508,1.22665252,2930.4,2929.1,2.69486139]
[1769164649704,0.17360638,2930.5,2929.1,2.69486139]
[1769164650014,1.22665076,2930.4,2929.4,0.91384372]
[1769164650311,0.00277638,2930.5,2929.4,0.91384372]
[1769164650312,0.00277638,2930.5,2929.5,2.69486139]
[1769164652914,0.00277638,2930.5,2929.5,3.60773986]
[1769164653713,0.00277638,2930.5,2929.8,0.91287847]
[1769164654015,0.00277638,2930.5,2929.8,0.91636405]
[1769164657012,0.00277638,2930.5,2929.8,0.00348558]
[1769164658216,0.92096217,2930.4,2929.8,5.58e-06]
[1769164658414,0.17360638,2930.5,2929.0,0.91287847]
[1769164658415,0.92096217,2930.3,2929.0,0.91287847]
[1769164658610,0.17360638,2930.5,2929.0,0.91287847]
[1769164658805,1.39547563,2930.4,2929.0,0.91287847]
[1769164659007,1.22464563,2930.3,2929.0,0.91287847]
[1769164659207,0.92098416,2930.2,2929.0,0.91287847]
[1769164659407,0.17083,2930.4,2929.0,0.91730293]
[1769164659611,1.22466351,2930.3,2929.0,0.91730293]
[1769164659806,0.92099734,2930.2,2929.0,0.91730293]
[1769164660010,0.17083,2930.4,2929.0,3.62531291]
[1769164660320,1.2246632,2930.3,2929.0,3.62531291]
[1769164660514,0.9209971,2930.2,2929.0,3.62531291]
[1769164660711,0.17083,2930.4,2929.0,3.62531291]
[1769164660912,1.22467157,2930.3,2929.0,3.62531291]
[1769164661215,0.92100354,2930.2,2929.0,3.62531291]
[1769164661415,0.17083,2930.4,2929.0,3.62531291]
[1769164661617,1.22467964,2930.3,2929.0,3.62531291]
[1769164661918,0.92100974,2930.2,2929.0,3.62531291]
[1769164662119,0.17083,2930.4,2929.0,3.62531291]
[1769164662318,1.22467929,2930.3,2929.0,3.62531291]
[1769164662517,0.92100949,2930.2,2929.0,3.62531291]
[1769164662718,0.17083,2930.4,2929.0,3.62531291]
[1769164663021,1.22468868,2930.3,2929.0,3.62531291]
[1769164663319,0.92101665,2930.2,2929.0,3.62531291]
[1769164663519,0.17083,2930.4,2929.0,3.62531291]
[1769164663821,1.22469794,2930.3,2929.0,3.62531291]
[1769164664117,0.92102374,2930.2,2929.0,3.62531291]
[1769164664306,0.17083,2930.4,2929.0,3.62531291]
[1769164664510,3.87562893,2930.3,2929.0,3.62531291]
[1769164664720,1.22481,2930.2,2929.0,3.62531291]
[1769164665014,1.22481,2930.1,2929.0,3.62531291]
[1769164665218,0.92110861,2930.0,2929.0,3.62531291]
[1769164665522,2.65081896,2930.3,2929.0,3.62531291]
[1769164665814,1.22492458,2930.2,2929.0,3.62531291]
[1769164666021,1.22492458,2930.1,2929.0,3.62531291]
[1769164666212,1.22492458,2930.0,2929.0,0.91730293]
[1769164666414,0.9211842,2929.9,2929.0,0.91730293]
[1769164666607,3.73453743,2930.3,2929.0,0.91730293]
[1769164666819,1.22507787,2930.2,2929.0,0.91730293]
[1769164667019,1.22507787,2930.1,2929.0,0.91730293]
[1769164667219,1.22507787,2930.0,2929.0,0.91730293]
[1769164667519,0.92129572,2929.9,2929.0,0.91730293]
[1769164667822,3.73453743,2930.3,2929.0,0.91287847]
[1769164668121,0.00512707,2929.8,2929.0,0.91287847]
[1769164668722,0.00512707,2929.8,2929.0,0.91569124]
[1769164670519,3.73453743,2930.3,2929.0,0.91569124]
[1769164670520,0.17084,2930.3,2929.3,3.62088845]
[1769164670721,1.22598007,2930.2,2929.3,3.62088845]
[1769164670921,1.22598007,2930.1,2929.3,3.62088845]
[1769164671116,0.17084,2930.3,2929.3,3.62088845]
[1769164671117,0.92203207,2930.0,2929.3,3.62088845]
[1769164671322,0.92203207,2929.9,2929.3,3.62088845]
[1769164671516,0.17084,2930.3,2929.3,3.62088845]
[1769164671716,1.22604952,2930.2,2929.3,3.62088845]
[1769164671925,1.22604952,2930.1,2929.3,3.62088845]
[1769164672123,0.92209114,2930.0,2929.3,3.62088845]
[1769164672423,0.92209114,2929.9,2929.3,3.62088845]
[1769164672621,0.17084,2930.3,2929.3,3.62088845]
[1769164672821,1.22612636,2930.2,2929.3,3.62088845]
[1769164673021,1.22612636,2930.1,2929.3,3.62088845]
[1769164673227,0.92215742,2930.0,2929.3,3.62088845]
[1769164673524,0.92215742,2929.9,2929.3,3.62088845]
[1769164673714,0.17084,2930.3,2929.3,3.62088845]
[1769164673915,1.22842748,2930.2,2929.3,3.62088845]
[1769164674115,1.22842748,2930.1,2929.3,3.62088845]
[1769164674320,0.92445915,2930.0,2929.3,3.62088845]
[1769164674624,0.92445915,2929.9,2929.3,3.62088845]
[1769164674824,0.17084,2930.3,2929.3,3.62088845]
[1769164675025,1.2284009,2930.2,2929.3,3.62088845]
[1769164675224,1.2284009,2930.1,2929.3,3.62088845]
[1769164675428,0.92443928,2930.0,2929.3,3.62088845]
[1769164675628,0.17084,2930.3,2929.3,3.62088845]
[1769164675924,1.22840524,2930.2,2929.3,3.62088845]
[1769164676127,1.22840524,2930.1,2929.3,3.62088845]
[1769164676325,0.92444307,2930.0,2929.3,3.62088845]
[1769164676523,0.17084,2930.3,2929.3,3.62088845]
[1769164676721,1.22840766,2930.2,2929.3,3.62088845]
[1769164677022,1.22840766,2930.1,2929.3,3.62088845]
[1769164677219,0.92444518,2930.0,2929.3,3.62088845]
[1769164677420,0.17084,2930.3,2929.3,3.62088845]
[1769164677620,1.22839731,2930.2,2929.3,3.62088845]
[1769164677821,1.22839731,2930.1,2929.3,3.62088845]
[1769164678020,1.22839731,2930.0,2929.3,3.62088845]
[1769164678224,0.17084,2930.3,2929.3,3.62088845]
[1769164678425,1.22834672,2930.2,2929.3,3.62088845]
[1769164678625,1.22834672,2930.1,2929.3,3.62088845]
[1769164678827,1.22834672,2930.0,2929.3,3.62088845]
[1769164679028,0.17084,2930.3,2929.3,3.62088845]
[1769164679230,1.22834284,2930.2,2929.3,3.62088845]
[1769164679526,0.92438555,2930.1,2929.3,3.62088845]
[1769164679726,0.92438555,2930.0,2929.3,3.62088845]
[1769164679925,0.17084,2930.3,2929.3,3.62088845]
[1769164680126,0.92435272,2930.2,2929.3,3.62088845]
[1769164680326,0.92435272,2930.1,2929.3,3.62088845]
[1769164680528,0.92435272,2930.0,2929.3,3.62088845]
[1769164680731,0.17084,2930.3,2929.3,3.62088845]
[1769164680926,1.2283455,2930.2,2929.3,3.62088845]
[1769164681126,0.92437697,2930.1,2929.3,3.62088845]
[1769164681324,0.30396853,2930.2,2929.3,3.62088845]
[1769164681530,1.22845916,2930.1,2929.3,3.62088845]
[1769164681720,0.17084,2930.3,2929.1,0.00512707]
[1769164681721,1.22845916,2930.0,2929.1,0.00512707]
[1769164681924,1.2284989,2929.9,2929.1,0.00512707]
[1769164682125,1.2284989,2929.8,2929.1,0.00512707]
[1769164682429,1.3993689,2929.7,2928.4,0.91287847]
[1769164682728,1.2284989,2929.6,2928.4,0.91287847]
[1769164682929,1.2284989,2929.5,2928.4,0.91287847]
[1769164683130,0.30401496,2929.4,2928.4,0.91287847]
[1769164683333,0.30416369,2929.3,2928.4,0.91287847]
[1769164683634,3.51451328,2929.7,2928.4,0.91721814]
[1769164683830,1.22828753,2929.6,2928.4,0.91721814]
[1769164684028,1.22828753,2929.5,2928.4,0.91721814]
[1769164684329,1.22828753,2929.4,2928.4,0.91721814]
[1769164684530,3.51451328,2929.7,2928.4,0.91721814]
[1769164684728,1.22802311,2929.6,2928.4,0.91721814]
[1769164684930,1.22802311,2929.5,2928.4,0.91721814]
[1769164685232,1.22802311,2929.4,2928.7,0.91287847]
[1769164685436,2.60163481,2929.7,2928.7,0.91287847]
[1769164685732,1.22788636,2929.6,2928.7,0.91287847]
[1769164685933,1.22788636,2929.5,2928.7,0.91287847]
[1769164686134,2.60163481,2929.7,2928.7,0.91287847]
[1769164686427,1.22766834,2929.6,2928.7,0.91287847]
[1769164686627,1.22766834,2929.5,2928.7,0.91287847]
[1769164686935,0.30396778,2929.4,2928.7,0.91287847]
[1769164687135,2.60163481,2929.7,2928.7,0.91287847]
[1769164687428,1.22774088,2929.6,2928.7,0.91287847]
[1769164687633,1.22774088,2929.5,2928.7,0.91287847]
[1769164687835,2.60163481,2929.7,2928.4,0.91721814]
[1769164688029,1.22802584,2929.6,2928.4,0.91721814]
[1769164688323,1.22802584,2929.5,2928.4,0.91721814]
[1769164688529,0.9240194,2929.4,2928.4,0.91721814]
[1769164688729,2.60163481,2929.7,2928.4,0.91721814]
[1769164688929,1.22796423,2929.6,2928.4,0.91721814]
[1769164689128,1.22796423,2929.5,2928.4,0.91721814]
[1769164689330,0.92397735,2929.4,2928.4,0.91721814]
[1769164689531,2.60163481,2929.7,2928.4,0.91721814]
[1769164689732,1.22779933,2929.6,2928.4,0.91721814]
[1769164689927,1.22779933,2929.5,2928.4,0.91721814]
[1769164690127,2.60163481,2929.7,2928.4,0.91721814]
[1769164690329,1.22774342,2929.6,2928.4,0.91721814]
[1769164690529,1.22774342,2929.5,2928.4,0.91721814]
[1769164690729,2.60163481,2929.7,2928.4,0.91721814]
[1769164690930,1.2277082,2929.6,2928.4,0.91721814]
[1769164691126,1.2277082,2929.5,2928.4,0.91721814]
[1769164691332,2.60163481,2929.7,2928.4,0.91721814]
[1769164691532,1.22766394,2929.6,2928.4,0.91721814]
[1769164691732,1.22766394,2929.5,2928.4,0.91721814]
[1769164692032,2.60163481,2929.7,2928.4,0.91721814]
[1769164692337,1.22766394,2929.6,2928.4,0.91721814]
[1769164692542,1.22766394,2929.5,2928.4,0.91721814]
[1769164692743,2.60163481,2929.7,2928.4,0.91721814]
[1769164692942,1.22766186,2929.6,2928.4,0.91721814]
[1769164693140,1.22766186,2929.5,2928.4,0.91721814]
[1769164693440,0.92380113,2929.4,2928.4,0.91721814]
[1769164693640,2.60163481,2929.7,2928.4,0.91721814]
[1769164693838,1.22770016,2929.6,2928.4,0.91721814]
[1769164694035,1.22770016,2929.5,2928.4,0.91721814]
[1769164694242,0.92380113,2929.4,2928.4,0.91721814]
[1769164694542,2.60163481,2929.7,2928.4,0.91721814]
[1769164694846,1.39866125,2929.6,2928.4,0.91721814]
[1769164695036,1.22778125,2929.5,2928.4,0.91721814]
[1769164695236,0.92387379,2929.4,2928.4,0.91721814]
[1769164695544,0.17088,2929.6,2928.4,0.91721814]
[1769164695744,1.22780783,2929.5,2928.4,0.91721814]
[1769164696044,0.92390109,2929.4,2928.4,0.91721814]
[1769164696338,0.17088,2929.6,2928.4,0.91721814]
[1769164696549,1.22779177,2929.5,2928.4,0.91721814]
[1769164696743,0.92390136,2929.4,2928.4,0.91721814]
[1769164697041,0.17088,2929.6,2928.4,0.91721814]
[1769164697241,1.22779176,2929.5,2928.4,0.91721814]
[1769164697438,0.92390135,2929.4,2928.4,0.91721814]
[1769164697640,0.17088,2929.6,2928.4,0.91721814]
[1769164697840,1.22778542,2929.5,2928.4,0.91721814]
[1769164698038,0.92390675,2929.4,2928.4,0.91721814]
[1769164698240,0.17088,2929.6,2928.4,0.91721814]
[1769164698439,1.22778759,2929.5,2928.4,0.91721814]
[1769164698641,0.92391627,2929.4,2928.4,0.91721814]
[1769164698946,0.17088,2929.6,2928.4,0.91721814]
[1769164699135,1.22778759,2929.5,2928.4,0.91721814]
[1769164699338,0.92391627,2929.4,2928.4,0.91721814]
[1769164699538,0.17088,2929.6,2928.4,0.91721814]
[1769164699844,1.22779695,2929.5,2928.4,0.91721814]
[1769164700043,0.92392859,2929.4,2928.4,0.91721814]
[1769164700342,0.17088,2929.6,2928.4,0.91721814]
[1769164700649,1.22781362,2929.5,2928.4,0.91721814]
[1769164700840,0.92394369,2929.4,2928.4,0.91721814]
[1769164701033,0.17088,2929.6,2928.4,0.91721814]
[1769164701249,1.22781356,2929.5,2928.4,0.91721814]
[1769164701546,0.92394365,2929.4,2928.4,0.91721814]
[1769164701740,0.17088,2929.6,2928.4,0.91721814]
[1769164701940,1.22791544,2929.5,2928.4,0.91721814]
[1769164702149,0.92401793,2929.4,2928.4,0.91721814]
[1769164702347,0.17088,2929.6,2928.4,0.91721814]
[1769164702550,1.22797239,2929.5,2928.4,0.91721814]
[1769164702845,0.92403914,2929.4,2928.4,0.91721814]
[1769164703050,0.17088,2929.6,2928.4,0.91721814]
[1769164703249,1.22797239,2929.5,2928.4,0.91721814]
[1769164703550,1.22797239,2929.4,2928.4,0.91721814]
[1769164703749,0.17088,2929.6,2928.4,0.91721814]
[1769164703944,1.22708802,2929.5,2928.4,0.91721814]
[1769164704140,1.22708802,2929.4,2928.4,0.91721814]
[1769164704340,0.92311035,2929.3,2928.4,0.91721814]
[1769164704541,0.17088,2929.6,2928.4,0.91721814]
[1769164704742,1.227269,2929.5,2928.4,0.91721814]
[1769164704943,1.227269,2929.4,2928.4,0.91721814]
[1769164705242,0.92323453,2929.3,2928.4,0.91721814]
[1769164705438,0.92340037,2929.2,2928.4,0.91721814]
[1769164705644,0.17088,2929.6,2928.4,0.91721814]
[1769164705845,1.22750743,2929.5,2928.4,0.91721814]
[1769164706050,1.22750743,2929.4,2928.4,0.91721814]
[1769164706250,1.22751678,2929.3,2928.4,0.00433967]
[1769164706453,0.92340037,2929.2,2928.4,0.00433967]
[1769164706750,0.92340037,2929.1,2928.4,0.00433967]
[1769164706939,0.17089,2929.5,2928.4,0.00433967]
[1769164707142,1.22779487,2929.4,2928.4,0.00433967]
[1769164707351,1.22779487,2929.3,2928.4,0.00433967]
[1769164707549,1.22779487,2929.2,2928.4,0.00433967]
[1769164707749,0.92359702,2929.1,2928.4,0.00433967]
[1769164707950,0.92359702,2929.0,2928.4,0.00433967]
[1769164708146,2.58107197,2929.3,2928.4,0.00433967]
[1769164708342,1.22842398,2929.2,2928.4,0.00433967]
[1769164708541,1.22842398,2929.1,2928.4,0.00433967]
[1769164708749,0.92411219,2929.0,2928.4,0.00433967]
[1769164708946,2.58107197,2929.3,2928.4,0.00433967]
[1769164709147,1.22857879,2929.2,2928.4,0.00433967]
[1769164709349,1.22857879,2929.1,2928.4,0.00433967]
[1769164709547,0.92411224,2929.0,2928.0,2.61037189]
[1769164709748,0.92411224,2928.9,2928.0,2.61037189]
[1769164709948,2.58107197,2929.3,2928.0,2.61037189]
[1769164710149,1.22892645,2929.2,2928.0,2.61037189]
[1769164710348,1.22892645,2929.1,2928.0,2.61037189]
[1769164710548,0.92447044,2929.0,2928.0,2.61394151]
[1769164710754,0.92447044,2928.9,2928.0,2.61394151]
[1769164711055,2.58107197,2929.3,2928.0,2.61394151]
[1769164711252,1.22949075,2929.2,2928.0,2.61394151]
[1769164711452,1.22949075,2929.1,2928.0,2.61394151]
[1769164711652,0.92504295,2929.0,2928.0,2.61394151]
[1769164711853,0.92504295,2928.9,2928.0,2.61394151]
[1769164712054,2.58107197,2929.3,2928.0,2.61394151]
[1769164712351,1.2298347,2929.2,2928.0,2.61394151]
[1769164712652,1.2298347,2929.1,2928.0,2.61394151]
[1769164712853,0.92518684,2929.0,2928.0,2.61394151]
[1769164713049,0.92518684,2928.9,2928.0,2.61394151]
[1769164713250,2.58107197,2929.3,2928.0,2.61394151]
[1769164713450,1.2297824,2929.2,2928.0,2.61394151]
[1769164713751,1.2297824,2929.1,2928.0,2.61394151]
[1769164713953,0.92516005,2929.0,2928.0,2.61394151]
[1769164714154,0.92516005,2928.9,2928.0,2.61394151]
[1769164714348,2.58107197,2929.3,2928.0,2.61394151]
[1769164714549,1.22972997,2929.2,2928.0,2.61394151]
[1769164714851,1.22972997,2929.1,2928.0,2.61394151]
[1769164715159,0.92512243,2929.0,2928.0,2.61394151]
[1769164715452,2.58107197,2929.3,2928.0,2.61394151]
[1769164715647,1.22968786,2929.2,2928.0,2.61394151]
[1769164715851,1.22968786,2929.1,2928.0,2.61394151]
[1769164716053,0.92509055,2929.0,2928.0,2.61394151]
[1769164716255,0.17089,2929.4,2928.0,2.61394151]
[1769164716455,1.22968327,2929.3,2928.0,2.61394151]
[1769164716654,1.22968327,2929.2,2928.0,2.61394151]
[1769164716862,1.22968327,2929.1,2928.0,2.61394151]
[1769164717051,0.925087,2929.0,2928.0,2.61394151]
[1769164717362,0.1709,2929.3,2928.0,2.61394151]
[1769164717551,1.2296872,2929.2,2928.0,2.61394151]
[1769164717751,1.2296872,2929.1,2928.0,2.61394151]
[1769164717955,0.92508986,2929.0,2928.0,2.61394151]
[1769164718155,1.22971615,2928.9,2928.0,2.61394151]
[1769164718457,1.22967412,2928.8,2928.0,2.61394151]
[1769164718652,0.92508986,2928.7,2928.0,2.61394151]
[1769164718854,0.17091,2929.1,2928.0,2.61394151]
[1769164719060,1.22964004,2929.0,2928.0,2.61394151]
[1769164719250,1.22964004,2928.9,2928.0,2.61394151]
[1769164719455,1.22964004,2928.8,2928.0,0.00356962]
[1769164719657,1.22964004,2928.7,2928.0,0.00356962]
[1769164719854,2.80915272,2929.1,2928.0,0.00356962]
[1769164720154,3.86768962,2929.0,2928.0,0.00356962]
[1769164720354,1.2294469,2928.9,2928.0,0.00356962]
[1769164720554,1.2294469,2928.8,2928.0,0.00356962]
[1769164720753,0.92490206,2928.7,2928.0,0.00356962]
[1769164720959,2.63824272,2929.0,2928.0,0.00356962]
[1769164721262,1.22911327,2928.9,2928.0,0.00356962]
[1769164721463,4.03828599,2928.8,2928.0,0.00356962]
[1769164721763,1.22911327,2928.7,2928.0,0.00356962]
[1769164722062,1.22911327,2928.6,2928.0,0.00356962]
[1769164722361,2.80917272,2928.8,2928.0,0.00356962]
[1769164722559,1.22866189,2928.7,2928.0,0.00356962]
[1769164722754,1.22866189,2928.6,2928.0,0.00356962]
[1769164722962,0.9243098,2928.5,2928.0,0.00356962]
[1769164723162,2.80917272,2928.8,2928.0,0.00356962]
[1769164723362,1.22831703,2928.7,2928.0,0.00356962]
[1769164723562,1.22831703,2928.6,2928.0,0.00356962]
[1769164723757,0.92404997,2928.5,2928.0,0.00356962]
[1769164724063,2.80917272,2928.8,2928.0,0.00356962]
[1769164724256,1.22811436,2928.7,2928.0,0.00356962]
[1769164724457,1.22811436,2928.6,2928.0,0.00356962]
[1769164724654,0.92384726,2928.5,2928.0,0.00356962]
[1769164724859,2.80917272,2928.8,2928.0,0.00356962]
[1769164725157,1.22804782,2928.7,2928.0,0.00356962]
[1769164725356,1.22804782,2928.6,2928.0,0.00356962]
[1769164725559,0.92384726,2928.5,2928.0,0.00356962]
[1769164725864,0.00512707,2928.6,2928.0,0.00356962]
[1769164726062,0.92367044,2928.5,2928.0,0.00356962]
[1769164726263,0.00512707,2928.6,2928.0,0.00356962]
[1769164726459,2.63824272,2928.4,2926.8,2.68504855]
[1769164726662,0.92355558,2928.3,2926.8,2.68504855]
[1769164727664,1.09738,2928.3,2926.8,2.68844375]
[1769164727965,1.22755183,2928.2,2926.8,2.68844375]
[1769164728158,0.17382442,2928.3,2926.8,2.68844375]
[1769164728159,1.22755183,2928.1,2926.8,2.68844375]
[1769164728359,2.81206714,2928.3,2926.8,2.68844375]
[1769164728562,1.22669575,2928.2,2926.8,2.68844375]
[1769164728761,0.92282372,2928.1,2926.8,2.68844375]
[1769164728961,2.81206714,2928.3,2926.8,2.68844375]
[1769164729160,1.22669578,2928.2,2926.8,2.68844375]
[1769164729464,0.92282378,2928.1,2926.8,2.68844375]
[1769164729665,2.81206714,2928.3,2926.8,2.68844375]
[1769164729857,1.22623211,2928.2,2926.8,2.68844375]
[1769164730059,0.92247474,2928.1,2926.8,2.68844375]
[1769164730264,2.81206714,2928.3,2926.8,2.68844375]
[1769164730464,1.22586241,2928.2,2926.8,2.68844375]
[1769164730665,0.92219642,2928.1,2926.8,2.68844375]
[1769164730854,2.81206714,2928.3,2926.8,2.68844375]
[1769164731061,1.22586212,2928.2,2926.8,2.68844375]
[1769164731259,2.81206714,2928.3,2926.8,2.68844375]
[1769164731467,0.9219782,2928.2,2926.8,2.68844375]
[1769164731667,2.81206714,2928.3,2926.8,2.68844375]
[1769164731867,0.92197839,2928.2,2926.8,2.68844375]
[1769164732069,2.81206714,2928.3,2926.8,2.68844375]
[1769164732268,0.92197846,2928.2,2926.8,2.68844375]
[1769164732469,2.81206714,2928.3,2926.8,2.68844375]
[1769164732767,0.92181156,2928.2,2926.8,2.68844375]
[1769164732963,2.81206714,2928.3,2926.8,2.68844375]
[1769164733162,0.92181194,2928.2,2926.8,2.68844375]
[1769164733362,2.81206714,2928.3,2926.8,2.68844375]
[1769164733564,0.92169592,2928.2,2926.8,2.68844375]
[1769164733763,2.81206714,2928.3,2926.8,2.68844375]
[1769164733967,0.92312413,2928.2,2926.8,2.68844375]
[1769164734171,2.81206714,2928.3,2926.8,2.68844375]
[1769164734370,0.92303843,2928.2,2926.8,2.68844375]
[1769164734562,2.81206714,2928.3,2926.8,2.68844375]
[1769164734761,0.92303803,2928.2,2926.8,2.68844375]
[1769164734958,2.81206714,2928.3,2926.8,2.68844375]
[1769164735264,0.92303787,2928.2,2926.8,2.68844375]
[1769164735469,2.81206714,2928.3,2926.8,2.68844375]
[1769164735770,0.92299369,2928.2,2926.8,2.68844375]
[1769164735968,2.81206714,2928.3,2926.8,2.68844375]
[1769164736171,0.92299379,2928.2,2926.8,2.68844375]
[1769164736470,2.81206714,2928.3,2926.8,2.68844375]
[1769164736664,0.92297377,2928.2,2926.8,2.68844375]
[1769164736866,2.81206714,2928.3,2926.8,2.68844375]
[1769164737066,0.92297384,2928.2,2926.8,2.68844375]
[1769164737369,2.81206714,2928.3,2926.8,2.68844375]
[1769164737671,2.80922272,2927.9,2926.8,0.0033952]
[1769164737872,3.73221545,2927.8,2926.8,0.0033952]
[1769164738068,0.92298273,2927.7,2926.8,0.0033952]
[1769164738772,3.56122545,2927.7,2926.8,0.0033952]
[1769164738965,0.92298273,2927.6,2926.8,0.0033952]
[1769164739268,2.80923272,2927.7,2926.8,0.0033952]
[1769164739466,3.56088131,2927.6,2926.8,0.0033952]
[1769164739666,2.63824272,2927.6,2926.8,0.0033952]
[1769164741765,3.44555773,2927.5,2926.8,0.0033952]
[1769164741971,2.52303743,2927.3,2925.4,2.61201187]
[1769164742475,2.69406743,2927.1,2925.4,2.61201187]
[1769164742770,0.00512707,2926.6,2925.4,2.61201187]
[1769164742959,0.00512707,2926.6,2925.4,2.61544435]
[1769164745469,2.52303743,2927.4,2925.7,2.61201187]
[1769164745772,0.171,2927.6,2926.1,2.61201187]
[1769164745967,2.53412656,2927.4,2925.7,0.00512707]
[1769164746166,2.53412656,2927.2,2925.7,2.64156078]
[1769164747665,0.92121659,2927.1,2925.7,2.64156078]
[1769164747974,2.53412656,2927.2,2925.7,2.64156078]
[1769164748273,0.92121655,2927.1,2925.7,2.64156078]
[1769164748469,2.53412656,2927.2,2925.7,2.64156078]
[1769164750175,0.92144401,2927.1,2925.7,2.64156078]
[1769164750377,2.53412656,2927.2,2925.7,2.64156078]
[1769164750577,0.92138299,2927.1,2925.7,2.64156078]
[1769164750875,2.53412656,2927.2,2925.7,2.64156078]
[1769164751077,0.92138305,2927.1,2925.7,2.64156078]
[1769164751277,2.70514656,2927.2,2925.7,2.64156078]
[1769164751472,3.45565378,2927.1,2925.7,2.64156078]
[1769164751680,2.53412656,2927.1,2925.7,2.64156078]
[1769164752281,0.92167193,2927.0,2925.7,2.64156078]
[1769164752575,2.53412656,2927.1,2925.7,2.64156078]
[1769164752773,0.92162269,2927.0,2925.7,2.64156078]
[1769164752972,2.53412656,2927.1,2925.7,2.64156078]
[1769164753173,0.92161915,2927.0,2925.7,2.64156078]
[1769164753376,2.53412656,2927.1,2925.7,2.64156078]
[1769164753576,0.92173714,2927.0,2925.7,2.64156078]
[1769164753775,2.53412656,2927.1,2925.7,2.64156078]
[1769164753977,0.9217373,2927.0,2925.7,2.64156078]
[1769164754176,2.53412656,2927.1,2925.7,2.64156078]
[1769164754379,0.92191619,2927.0,2925.7,2.64156078]
[1769164754578,2.53412656,2927.1,2925.7,2.64156078]
[1769164754883,0.92191619,2927.0,2925.7,2.64156078]
[1769164755177,2.53412656,2927.1,2925.7,2.64156078]
[1769164755379,0.92215704,2927.0,2925.7,2.64156078]
[1769164755574,2.53412656,2927.1,2925.7,2.64156078]
[1769164755780,0.92215996,2927.0,2925.7,2.64156078]
[1769164755980,2.53412656,2927.1,2925.7,2.64156078]
[1769164756175,0.92215996,2927.0,2925.7,2.64156078]
[1769164756481,0.92215996,2926.9,2925.7,2.64156078]
[1769164756678,2.53412656,2927.1,2925.7,2.64156078]
[1769164756880,0.92247585,2927.0,2925.7,2.64156078]
[1769164757082,0.92247585,2926.9,2925.7,2.64156078]
[1769164757281,2.53412656,2927.1,2925.7,2.64156078]
[1769164757482,0.92263097,2927.0,2925.7,2.64156078]
[1769164757781,0.92263097,2926.9,2925.7,2.64156078]
[1769164758083,2.53412656,2927.1,2925.7,2.64156078]
[1769164758283,0.92270209,2927.0,2925.7,2.64156078]
[1769164758483,2.53412656,2927.1,2925.7,2.64156078]
[1769164758484,0.92270209,2926.9,2925.7,2.64156078]
[1769164758685,2.53412656,2927.1,2925.7,2.64156078]
[1769164758883,0.92273798,2927.0,2925.7,2.64156078]
[1769164759084,0.92273798,2926.9,2925.7,2.64156078]
[1769164759285,2.53412656,2927.1,2925.7,2.64156078]
[1769164759481,0.92287774,2927.0,2925.7,2.64156078]
[1769164759687,0.92287774,2926.9,2925.7,2.64156078]
[1769164759984,2.53412656,2927.1,2925.7,2.64156078]
[1769164760178,0.92287774,2927.0,2925.7,2.64156078]
[1769164760374,0.92287774,2926.9,2925.7,2.64156078]
[1769164760581,2.53412656,2927.1,2925.7,2.64156078]
[1769164760788,0.9230525,2927.0,2925.7,2.64156078]
[1769164760989,0.9230525,2926.9,2925.7,2.64156078]
[1769164761183,2.53412656,2927.1,2925.7,2.64156078]
[1769164761388,2.53412656,2926.8,2925.7,0.00512707]
[1769164761588,2.53412656,2926.6,2925.7,0.00512707]
[1769164761785,0.92333563,2926.5,2925.7,2.64156078]
[1769164761984,0.17103,2927.1,2925.7,2.64156078]
[1769164762286,1.22689236,2927.0,2925.7,2.64156078]
[1769164762586,1.22689236,2926.9,2925.7,2.64156078]
[1769164762788,0.92330264,2926.8,2925.7,2.64156078]
[1769164762987,0.92330264,2926.7,2925.7,2.64156078]
[1769164763184,0.17103,2927.1,2925.7,2.64156078]
[1769164763185,0.92330264,2926.6,2925.7,2.64156078]
[1769164763388,0.17103,2927.1,2925.7,2.64156078]
[1769164763582,1.22849612,2927.0,2925.7,2.64156078]
[1769164763788,1.22849612,2926.9,2925.7,2.64156078]
[1769164763988,0.92475482,2926.8,2925.7,2.64156078]
[1769164764187,0.92475482,2926.7,2925.7,2.64156078]
[1769164764388,0.92475482,2926.6,2925.7,2.64156078]